Cogmind - Beta 16.1 @@@ ROGUE MODE // 2026.04.08 @ 15:11:10 Player: microsand Result: Destroyed by G-34 Mercenary with Small Laser Performance ------------- Evolutions (1) 500 Regions Visited (3) 600 Robots Destroyed (39) 195 Value Destroyed (814) 814 Prototype IDs (0) 0 Alien Tech Used (0) 0 Bonus (0) 0 TOTAL SCORE: 2109 Bonus ------- None Cogmind --------- Core Integrity 0/400 Matter 500/500 Energy 140/140 System Corruption 3% Temperature Cool (6) Movement Walking (90) Location -9/Mines Parts ------- > --- POWER (1) -------- Light Deuterium Engine > --- PROPULSION (2) --- VSS Leg VSS Leg > --- UTILITY (3) ------ High-capacity Matter Pod > --- WEAPON (3) ------- Light Assault Rifle Light Assault Rifle Ripper > --- INVENTORY (5) ---- VSS Leg Makeshift Leg Makeshift Axe Peak State ------------ > --- POWER ------------ Light Deuterium Engine > --- PROPULSION ------- VSS Leg VSS Leg > --- UTILITY ---------- High-capacity Matter Pod Insulated Plating High-powered Tractor Beam > --- WEAPON ----------- Light Assault Rifle Light Assault Rifle Makeshift Axe > --- INVENTORY -------- VSS Leg Makeshift Leg Light Assault Rifle Ripper [Rating: 23] Favorites ----------- Power Ion Engine Engine Ion Engine Propulsion VSS Leg Treads Light Treads Leg VSS Leg Utility High-capacity Matter Pod Device Seismic Detector Storage High-capacity Matter Pod Processor Improved Targeting Computer Protection Hardened Medium Armor Plating Weapon Light Assault Rifle Energy Gun Small Laser Ballistic Gun Light Assault Rifle Ballistic Cannon Light Cannon Slashing Weapon Ripper Build | -11 -10 -9 -9 ------- Run | Yrd Mat Mat Min Slots Evolved 2 | . . 2 . Power . | . . . . Propulsion . | . . . . Utility 1 | . . 1 . Weapon 1 | . . 1 . Parts Attached 38 | 8 2 18 10 Power 4 | 1 . 2 1 Engine 4 | 1 . 2 1 Core . | . . . . Reactor . | . . . . Propulsion 8 | 2 . 4 2 Treads 2 | 2 . . . Leg 6 | . . 4 2 Wheel . | . . . . Hover . | . . . . Flight . | . . . . Utility 11 | 3 2 4 2 Device 3 | 2 . . 1 Storage 4 | 1 2 1 . Processor 1 | . . 1 . Hackware . | . . . . Protection 3 | . . 2 1 Artifact . | . . . . Weapon 15 | 2 . 8 5 Energy Gun 2 | . . 2 . Energy Cannon . | . . . . Ballistic Gun 9 | 2 . 4 3 Ballistic Cannon 2 | . . 2 . Launcher . | . . . . Special Weapon . | . . . . Impact Weapon . | . . . . Slashing Weapon 2 | . . . 2 Piercing Weapon . | . . . . Special Melee Weapon . | . . . . Unidentified Prototypes . | . . . . Parts Lost 17 | . . 7 10 Power 2 | . . 1 1 Propulsion 1 | . . . 1 Utility 6 | . . 2 4 Weapon 8 | . . 4 4 Highest Loss Streak 5 | . . 5 5 To Critical Strikes . | . . . . Average Backups 5 | 1 5 6 4 Power . | . . . . Propulsion 1 | . . 2 1 Utility 1 | . 2 2 . Weapon 1 | . 2 1 1 Tool/Special . | . . . . Unused Backups 2 | . . 1 1 Power . | . . . . Propulsion 2 | . . 1 1 Utility . | . . . . Weapon . | . . . . Tool/Special . | . . . . Average Slot Usage (%) 89 | . 89 85 95 Engine 10 | . 10 9 10 Treads 7 | . 24 . . Leg 14 | . . 21 21 Device 5 | . 14 1 3 Storage 12 | . 14 11 11 Processor 3 | . . 3 6 Protection 6 | . . 7 10 Ballistic Gun 21 | . 24 17 24 Ballistic Cannon 5 | . . 12 . Slashing Weapon 1 | . . . 6 Peak Build Rating 23 | 9 7 18 23 Average Rating 13 | 6 6 14 20 On Entrance 7 | . 7 5 18 Avg Prop Armor Cover (%) . | . . . . Naked Turns . | . . . . Heaviest Build 29 | 14 29 28 23 Greatest Support 40 | 40 40 24 24 Greatest Overweight (x) 7 | . 7 1 1 Average Overweight (x) . | . . . . Largest Inventory Capacity 15 | 8 15 15 5 Average Capacity 8 | 7 14 7 5 Most Carried 9 | 5 9 9 5 Average Carried 5 | 1 5 6 4 Final Capacity 15 | 8 15 5 5 Final Carried 9 | 2 9 5 3 Class Distribution -------------------- 58% | Mutant 27% | Gunner 14% | Tank Dominant Class ---------------- Mutant | -10/Materials Gunner | -9/Materials Mutant | -9/Mines Resources | -11 -10 -9 -9 ----------- Run | Yrd Mat Mat Min Matter Collected 1421 | 207 195 601 418 Remotely 117 | . . . 117 Salvage Created 1184 | 23 230 621 310 Parts 87 | 8 21 45 13 Haulers Intercepted . | . . . . Recyclers Shooed . | . . . . Parts Field Recycled . | . . . . Retrieved Matter . | . . . . Parts Self-Destructed . | . . . . Prevented . | . . . . Parts Restored . | . . . . Kills | -11 -10 -9 -9 ------- Run | Yrd Mat Mat Min Combat Hostiles Destroyed 42 | . 6 18 18 Melee 3 | . . . 3 Guns 33 | . 6 12 15 Cannons 6 | . . 6 . Classes Destroyed 10 | 1 5 2 2 Worker 1 | . 1 . . Tunneler 2 | 2 . . . Recycler 2 | . 1 1 . Mechanic 1 | . . 1 . Watcher 1 | . 1 . . Swarmer 18 | . 3 10 5 Grunt 9 | . 3 4 2 Sentry 4 | . . 4 . Demolisher 1 | . . . 1 Assembled 10 | . . . 10 Best Kill Streak 5 | 1 2 5 4 Combat Bots Only 5 | . 2 5 4 Max Kills in Single Turn 2 | 1 1 2 1 Gunslinging . | . . . . Exploded . | . . . . Melee 1 | . . . 1 Uniques/NPCs Destroyed . | . . . . Combat | -11 -10 -9 -9 -------- Run | Yrd Mat Mat Min Hostile Shots Fired 279 | . 51 128 100 Missed 64 | . 12 27 25 Hits 215 | . 39 101 75 Melee 2 | . . . 2 Projectile 213 | . 39 101 73 AOE 9 | . . . 9 Critical Strikes 1 | . . 1 . Damage Taken 2655 | . 367 1142 1146 Core 528 | . 128 168 232 Absorbed by Shields . | . . . . Core Remaining (%) 74 | 100 48 . . Volleys Fired 154 | 5 45 51 53 Largest 3 | 2 2 3 3 Hottest 83 | 40 40 83 66 Shots Fired 315 | 10 68 118 119 Gun 264 | 10 68 67 119 Cannon 51 | . . 51 . Launcher . | . . . . Special . | . . . . Kinetic 297 | 10 68 100 119 Thermal 16 | . . 16 . Explosive . | . . . . Electromagnetic 2 | . . 2 . Robot Hit Streak 12 | 4 12 8 7 Robot Miss Streak 7 | 2 7 4 5 Penetration Max . | . . . . Secondary Targets 6 | . 1 1 4 Max Gunslinging Chain 1 | . 1 1 1 Shots Hit Robots 180 | 5 42 65 68 Core Hits 79 | 3 15 29 32 Critical Kills 3 | 1 . . 2 Critical Parts Destroyed 1 | . . . 1 Critical Strikes 5 | 1 . . 4 Destroy 4 | 1 . . 3 Sever 1 | . . . 1 Melee Attacks 12 | . . . 12 Impact . | . . . . Slashing 12 | . . . 12 Piercing . | . . . . Sneak Attacks . | . . . . Combat Hostiles . | . . . . Follow-up Attacks . | . . . . Damage Inflicted 2346 | 56 420 979 891 Guns 1545 | 56 417 499 573 Cannons 480 | . . 480 . Explosions . | . . . . Melee 318 | . . . 318 Ramming 3 | . 3 . . Kinetic 1861 | 56 417 815 573 Thermal 141 | . . 141 . Explosive . | . . . . Electromagnetic 23 | . . 23 . Impact . | . . . . Slashing 318 | . . . 318 Piercing . | . . . . Highest Corruption 3 | . . . 3 Average Corruption 3 | . . . 3 Corruption Purged . | . . . . Corruption Blocked . | . . . . Effects 6 | . . . 6 Message Errors 3 | . . . 3 Heat Flow Errors 1 | . . . 1 Energy Discharges 1 | . . . 1 Weapon Failures 1 | . . . 1 Overload Shots . | . . . . Overflow Damage 6 | . . . 6 Projectiles . | . . . . Explosions . | . . . . Melee 6 | . . . 6 Knockbacks 4 | . . 4 . Impact . | . . . . Kinetic 4 | . . 4 . Secondary . | . . . . Self-Inflicted Damage . | . . . . Shots . | . . . . Rammed . | . . . . Targets Rammed 1 | . 1 . . Kicked . | . . . . Crushed 1 | . 1 . . Highest Temperature 270 | . 12 237 270 Average Temperature 54 | . 5 66 45 Received Heat Transfer 435 | . 84 312 39 Siege Activations . | . . . . Martial Activations . | . . . . Shielding Activations . | . . . . Robots Disrupted . | . . . . Combat Hostiles . | . . . . Robots Corrupted . | . . . . Combat Hostiles . | . . . . Parts Fried . | . . . . Impact Corruptions . | . . . . Robots Melted . | . . . . Combat Hostiles . | . . . . Parts Melted . | . . . . Heat Transferred 325 | . . 325 . Parts Sabotaged . | . . . . Parts Stolen . | . . . . Parts Stripped . | . . . . Power Chain Reactions . | . . . . Alert | -11 -10 -9 -9 ------- Run | Yrd Mat Mat Min Maximum Alert Level 1 | . . 1 . Low Security (%) 98 | 100 100 95 100 Level 1 1 | . . 4 . Level 2 . | . . . . Level 3 . | . . . . Level 4 . | . . . . Level 5 . | . . . . High Security . | . . . . Max Security . | . . . . Peak Influence 209 | 5 40 209 94 Initial 44 | . . 4 44 Average 47 | . 8 90 28 Influence Increases 862 | 10 167 485 200 Destroy 0b10 Robot/C 640 | . 120 360 160 Destroy 0b10 Robot/NC 35 | 10 15 10 . Destroy Leader 162 | . 32 90 40 Successful Hack 8 | . . 8 . Destroy Structure 2 | . . 2 . Lose Combat Pursuer 15 | . . 15 . Influence Decreases 830 | 10 155 382 283 Entered New Map 79 | . . 8 71 Time Decay 621 | 10 155 314 142 Lost Part 130 | . . 60 70 Squads Dispatched 2 | . 2 . . Investigation . | . . . . Extermination . | . . . . Reinforcement 2 | . 2 . . Assault . | . . . . Garrison . | . . . . Intercept . | . . . . Searches Triggered . | . . . . Construction Impeded . | . . . . Haulers Reinforced . | . . . . Active Scanning Responses . | . . . . Cargo Convoy Interrupts . | . . . . Stealth | -11 -10 -9 -9 --------- Run | Yrd Mat Mat Min Distress Signals 5 | . 2 3 . Communications Jammed . | . . . . Distress Signals . | . . . . Times Spotted 78 | . 15 32 31 Peak Tracking Total 11 | . 4 11 10 Tactical Retreats 1 | . . 1 . Traps | -11 -10 -9 -9 ------- Run | Yrd Mat Mat Min Traps Triggered 2 | . 2 . . Indirectly . | . . . . Trap Hack Attempts . | . . . . Triggered . | . . . . Disarmed . | . . . . Reprogrammed . | . . . . Reused . | . . . . Traps Extracted . | . . . . Installed . | . . . . Triggered . | . . . . Machines | -11 -10 -9 -9 ---------- Run | Yrd Mat Mat Min Machines Disabled . | . . . . Max in Single Turn . | . . . . Machines Repaired . | . . . . Machines Dismantled . | . . . . Machines Sabotaged . | . . . . Overloaded Fab Kills . | . . . . Hacking | -11 -10 -9 -9 --------- Run | Yrd Mat Mat Min Machines Accessed 1 | . . 1 . Terminals 1 | . . 1 . Fabricators . | . . . . Repair Stations . | . . . . Recycling Units . | . . . . Scanalyzers . | . . . . Garrison Access . | . . . . Total Hacks 1 | . . 1 . Successful 1 | . . 1 . Failed . | . . . . Catastrophic . | . . . . Database Lockouts . | . . . . Manual 1 | . . 1 . Terminals 1 | . . 1 . Fabricators . | . . . . Repair Stations . | . . . . Recycling Units . | . . . . Scanalyzers . | . . . . Garrison Access . | . . . . Terminal Hacks 1 | . . 1 . Branch Access Points 1 | . . 1 . Fabricator Hacks . | . . . . Repair Station Hacks . | . . . . Recycling Unit Hacks . | . . . . Scanalyzer . | . . . . Garrison Access Hacks . | . . . . Unauthorized Hacks . | . . . . Terminals . | . . . . Fabricators . | . . . . Repair Stations . | . . . . Recycling Units . | . . . . Scanalyzers . | . . . . Garrison Access . | . . . . Data Cores Recovered . | . . . . Used . | . . . . Hacking Detections . | . . . . Full Trace Events . | . . . . Feedback Events . | . . . . Feedback Blocked . | . . . . Robot Schematics Acquired . | . . . . Robots Built . | . . . . Authchips . | . . . . Time . | . . . . Total Robot Build Rating . | . . . . Part Schematics Acquired . | . . . . Parts Built . | . . . . Authchips . | . . . . Time . | . . . . Total Part Build Rating . | . . . . Part Studies Acquired . | . . . . Parts Repaired . | . . . . Time . | . . . . Parts Recycled . | . . . . Recycled Matter . | . . . . Retrieved Matter . | . . . . Retrieved Components . | . . . . Parts Scanalyzed . | . . . . Part Schematics Acquired . | . . . . Parts Damaged . | . . . . Bothacking | -11 -10 -9 -9 ------------ Run | Yrd Mat Mat Min Used RIF Installer . | . . . . Robots Hacked . | . . . . Non-combat . | . . . . Combat . | . . . . Robot Hacks Applied . | . . . . Relay Couplers Released . | . . . . Fabnet Peak Effective % . | . . . . Robots Rewired . | . . . . Allies Hacked . | . . . . Hacks Repelled . | . . . . Allies | -11 -10 -9 -9 -------- Run | Yrd Mat Mat Min Total Allies . | . . . . Largest Group . | . . . . Highest-Rated Group . | . . . . Highest-Rated Ally . | . . . . Total Orders . | . . . . Ally Attacks . | . . . . Total Damage . | . . . . Kills . | . . . . Allies Corrupted . | . . . . Allies Melted . | . . . . Intel | -11 -10 -9 -9 ------- Run | Yrd Mat Mat Min Active Infowar (turns) 825 | 78 596 151 . Terrain 50 | 49 . 1 . Seismic 776 | 29 596 151 . Robot Analysis Total . | . . . . Derelict Logs Recovered 2 | . . . 2 Drone Launches . | . . . . Drone Recoveries . | . . . . Exploration | -11 -10 -9 -9 ------------- Run | Yrd Mat Mat Min Turns Passed 2173 | 133 596 895 549 Spaces Moved 1244 | 79 264 536 365 Core 25 | 22 3 . . Treads 329 | 57 261 11 . Legs 890 | . . 525 365 Wheels . | . . . . Hover . | . . . . Flight . | . . . . Fastest Speed 50 | 50 160 90 90 Average Speed 119 | 129 173 112 90 Slowest Speed 400 | 160 400 240 180 Overloaded Moves . | . . . . Propulsion Burnouts . | . . . . Robots Hopped . | . . . . Potential Cave-ins . | . . . . Cave-ins Triggered . | . . . . Exploration Rate (%) 42 | 3 47 54 66 Regions Visited 3 Branch Regions 1 Pre-discovered Areas . | . . . . Known Exits Taken 1 | . . 1 . Unknown Exits Taken 2 | 1 1 . . Scrap Searched 1 | . . . 1 Spaces Dug . | . . . . Terrain Destroyed . | . . . . Melee . | . . . . Projectile . | . . . . AOE . | . . . . Terrain Rammed . | . . . . Walls Destroyed . | . . . . Machines Disabled . | . . . . Actions | -11 -10 -9 -9 --------- Run | Yrd Mat Mat Min Total 1662 | 100 344 738 480 Wait 150 | . 22 98 30 Move 1241 | 78 263 535 365 Hop . | . . . . Pick Up 44 | 9 9 19 7 Fast Attach . | . . . . Attach 34 | 7 2 17 8 Detach 2 | . . 2 . Swap 13 | 1 2 6 4 Drop 11 | . . 10 1 Fire 154 | 5 45 51 53 Melee 12 | . . . 12 Ram . | . . . . Kick . | . . . . Crush 1 | . 1 . . Escape Stasis . | . . . . Rewire . | . . . . Trap . | . . . . Miscellaneous . | . . . . Route ------- -11/Scrapyard -10/Materials (discovered 2 exits: *Mat x2) -9/Materials (discovered 2 exits: [*Mat] / *Min) -9/Mines History --------- Turn | Location | Event 4 | -11/Scrapyard | Discovered new exit (range 16) 134 | -11/Scrapyard | Entered Materials 308 | -10/Materials | Build established: Mutant 487 | -10/Materials | Discovered new exit (range 4) 594 | -10/Materials | Discovered new exit (range 15) 700 | -10/Materials | Core integrity fell below 50% 730 | -10/Materials | Entered another Materials area 730 | -9/Materials | Evolved 2 slots: Utility x1, Weapon x1 1176 | -9/Materials | Build established: Tank 1236 | -9/Materials | Discovered new exit (range 13) 1352 | -9/Materials | Lost 5 parts (1p1u3w) 1456 | -9/Materials | Identified exit to Mines 1622 | -9/Materials | Build established: Gunner 1625 | -9/Materials | Entered Mines 1686 | -9/Mines | Learned location of 1 exit from Materials 1716 | -9/Mines | Learned 2 Materials zone layouts 1749 | -9/Mines | A Derelict revealed a hidden shortcut to a safe place 1752 | -9/Mines | Assembled infested the area 1782 | -9/Mines | Core integrity fell below 50% 1819 | -9/Mines | Core integrity fell below 20% 1849 | -9/Mines | Lost 5 parts (1p1u3w) 1977 | -9/Mines | A weapon hastily lodged in a ceiling crevice suddenly fell to the ground 2077 | -9/Mines | Build established: Mutant 2174 | -9/Mines | Destroyed by G-34 Mercenary with Small Laser Last Messages --------------- 02096_ Acquired 2 matter. 02124_ Hpw. Tractor Beam destroyed. 02126_ System corrupted: Lgt. Assault Rifle jammed. 02126_ Destroyed Asb. Hover Unit. 02127_ Lgt. Assault Rifle destroyed. 02129_ as-56282 destroyed. 02136_ K-01 Serf collects debris. 02137_ Acquired 11 matter. 02139_ K-01 Serf collects debris. 02154_ C-30 ARC bursts open, deploying its payload. 02154_ G-47 Trooper unfolds itself. 02154_ G-34 Mercenary unfolds itself. 02158_ G-47 Trooper destroyed. 02159_ System corrupted: Energy discharge (-29). 02160_ G-34 Mercenary Aluminum Leg severed. 02165_ Destroyed Heat Sink. 02169_ Insulated Plating destroyed. 02173_ G-34 Mercenary destroyed. Map ----- +----------------------------------------------------+ | ???????## ##??# ### #??????# ###### ## | | ????????# #### ### #??????# #???## | | ????????## ### ##??????# #??## ### | | ?????????# #### ### ########## #### ##?? | | ?????????#####??# ## ##??? | | ????????????????# ####### ##???? | | ????????????????########## #????## ##????? | | ?????????????????????????# ###### ##?????? | | ?????????????????????????#% ##??????? | | ?????????????????????????#!!##### ##???????? | | ?????????????????????????#%!#???# ##???????? | | ????????????????????????##!=##??#!= ##??????? | | ????????????????????????# #??#%* ##?????? | | ????????????????????????# ##??#*= ##????? | | ????????????????????????#%= #???#%=! ##???? | | ????????????????????##### #???#=!=%!%= ##??? | | ????????????????????# #??## * ! #??? | | ????????????????????# ### ### #??? | | ????????????????????# #?## %| % ##??? | | ????????????????????# #??###* ##???? | | ????????????????????# #????## % ##???? | | ????????????????????# #?????## = ##### | | ????????????????????# #??????# ## | | ????????????????????#[#?????# # | | ????????????????????#=#?????# ## | | ???????????????######@#?????## ### | | ???????????????# % [g=#??????# #?## | | ???????????????# ######??????# ## | | ?????????????????????????????# !% | | ?????????????????????????????## ## ! | | ??????????????????????????????# ###### ### | | ??????????????????????????????# ?????## # | | ??????????????????????????????????????# | | ??????????????????????????????????????## | | ???????????????????????????????????????# | | ???????????????????????????????????????## | | ????????????????????????????????????????###### | | ?????????????????????????????????????????????? | | ?????????????????????????????????????????????? | | ?????????????????????????????????????????????? | | ?????????????????????????????????????????????? | | ?????????????????????????????????????????????? | | ?????????????????????????????????????????????? | | ?????????????????????????????????????????????? | | ?????????????????????????????????????????????? | | ?????????????????????????????????????????????? | | ?????????????????????????????????????????????? | | ?????????????????????????????????????????????? | | ?????????????????????????????????????????????? | | ?????????????????????????????????????????????? | +----------------------------------------------------+ Best States ------------- Heat Dissipation 28 Energy Generation 14 Energy Capacity 265 Matter Stores 500 Matter Capacity 500 Sight Range 16 Terrain Scan Range 16 Terrain Scan Density 10 Armor Coverage 225 Resistance: EM 15 Evasion (%) 57 Targeting Accuracy 6 Recoil Reduction 2 Item Schematics ----------------- None Robot Schematics ------------------ None Fabricated ------------ Nothing Repaired ---------- Nothing Studied --------- None Alien Tech Used ----------------- None Achievements -------------- Bumper Bots Sprinter Challenges ------------ None Game ------ Seed WavePowerImpeller Manual? 0 Play Time 00:16:15 Cumulative 27.0 hours Start 2026.04.08 @ 14:58:37 End 2026.04.08 @ 15:11:10 Sessions 1 Manual Loads 0 Difficulty Rogue Special Mode None Game No. 73 Rogue 73 Adventurer 0 Explorer 0 Win Type - Total 1 Types 1/0/0/0/0/0/0/0/0/0 Lore% 37 Gallery% 29 Achievement% 23 Wizard Run 0 Options --------- Layout 1 ASCII 0 Keyboard 0 Movement Numpad Keybinds 0 Fullscreen 1 Font 24/Smallcaps Map View 50x35 Zoom Use 0% Tactical HUD 1 Map Filters NONE Filters NONE Steam 1 RUN: 895ebcd9-dc6c-450a-a794-2050cc1e4d12